bitfinex-derivatives/quotes_ETHF0:USTF0_20251007
["timestamp","ask_amount","ask_price","bid_price","bid_amount"]
[1759852859580,3.11577153,4515.2,4515.1,1.5346]
[1759852859774,0.62741,4515.2,4515.1,1.5346]
[1759852859978,0.229,4515.2,4515.1,1.5346]
[1759852860686,3.43952026,4515.3,4515.1,1.5346]
[1759852861682,3.83792026,4515.3,4515.1,1.5346]
[1759852861883,0.39842,4515.1,4515.0,2.1989]
[1759852862988,0.39846,4514.6,4514.5,2.1937]
[1759852863287,6.75103376,4514.6,4514.5,2.1937]
[1759852863682,6.75103376,4514.6,4514.5,0.6643]
[1759852863985,6.75103376,4514.6,4514.5,2.1937]
[1759852864186,6.75103376,4514.6,4514.0,0.6643]
[1759852864187,0.39851,4514.1,4514.0,0.6643]
[1759852864376,0.3986,4513.0,4512.9,1.5294]
[1759852864582,0.3986,4513.0,4512.1,1.5294]
[1759852864583,3.4368,4513.0,4512.1,1.5294]
[1759852864787,0.39863,4512.8,4512.5,0.6213]
[1759852864990,0.229,4512.7,4512.6,1.5294]
[1759852865179,3.06557178,4512.7,4512.6,1.5294]
[1759852865384,0.39866,4512.4,4512.0,2.15290171]
[1759852865580,0.39868,4512.2,4512.0,0.62350171]
[1759852865776,0.229,4512.1,4512.0,0.00220171]
[1759852865981,0.00196552,4512.1,4512.0,2.15290171]
[1759852866684,0.40064552,4512.1,4512.0,2.15290171]
[1759852866889,0.00196552,4512.1,4512.0,2.15290171]
[1759852867284,0.40064552,4512.1,4512.0,2.15290171]
[1759852867681,0.00196552,4512.1,4512.0,2.15290171]
[1759852870185,0.00196552,4512.1,4512.0,2.38190171]
[1759852870391,11.15619249,4512.1,4508.9,1.18227948]
[1759852870693,11.15619249,4512.1,4508.6,1.5294]
[1759852870694,0.39899,4508.7,4508.6,1.5294]
[1759852870885,0.39904,4508.1,4508.0,0.6213]
[1759852871095,0.39904,4508.1,4507.5,0.6213]
[1759852871283,3.29066238,4508.1,4507.5,0.6213]
[1759852871486,3.29066238,4508.1,4507.9,0.02379312]
[1759852871487,3.29244502,4508.1,4507.9,0.02379312]
[1759852871684,0.229,4508.0,4507.9,0.02379312]
[1759852871895,3.12062238,4508.0,4507.9,1.55319312]
[1759852872492,2.89162238,4508.0,4507.9,1.55319312]
[1759852872695,3.12062238,4508.0,4507.9,1.55319312]
[1759852873893,3.12062238,4508.0,4507.9,0.02379312]
[1759852874196,3.12062238,4508.0,4507.1,1.5294]
[1759852874197,0.39912,4507.2,4507.1,1.5294]
[1759852874489,2.90331793,4507.2,4507.1,1.5294]
[1759852874688,0.39907,4507.7,4507.1,1.5294]
[1759852874895,3.2078,4507.8,4507.1,1.5294]
[1759852875099,3.2078,4507.2,4507.1,1.5294]
[1759852875286,3.4368,4507.2,4507.1,1.53154202]
[1759852875598,11.28196822,4507.2,4507.1,0.00214202]
[1759852876099,0.39917,4506.6,4506.5,0.6213]
[1759852876297,3.83597,4506.6,4506.5,0.6213]
[1759852876491,6.6959818,4506.6,4506.5,0.6213]
[1759852877094,6.6959818,4506.6,4506.5,0.00195976]
[1759852877292,0.39918,4506.5,4505.6,1.94121377]
[1759852877489,3.2078,4506.1,4506.0,0.6213]
[1759852877695,3.2078,4506.1,4506.0,2.1507]
[1759852878295,3.2078,4506.1,4506.0,2.15332114]
[1759852879699,0.39908,4507.6,4506.7,1.92855]
[1759852879900,0.229,4507.5,4507.2,0.6213]
[1759852880201,3.10457559,4507.5,4507.3,1.5294]
[1759852880503,3.50366559,4507.5,4507.2,0.6213]
[1759852880803,0.3991,4507.4,4507.3,1.5294]
[1759852881000,3.10457559,4507.5,4507.3,1.5294]
[1759852881199,2.87557559,4507.5,4507.3,1.92851]
[1759852881499,3.2078,4507.7,4507.4,1.5294]
[1759852882004,3.2078,4507.7,4507.4,0.5294]
[1759852882202,3.2078,4507.7,4507.2,0.6213]
[1759852882203,3.2078,4507.7,4507.5,0.6213]
[1759852882701,3.2078,4507.7,4505.5,0.6213]
[1759852882702,43.78028438,4507.6,4505.5,0.6213]
[1759852882898,43.78028438,4507.6,4506.0,0.00262114]
[1759852882899,3.60701,4506.2,4506.0,0.00262114]
[1759852883101,0.229,4506.1,4506.0,0.00262114]
[1759852883307,3.17757438,4506.1,4506.0,0.00262114]
[1759852883806,3.17757438,4506.1,4506.0,0.62392114]
[1759852884006,3.17757438,4506.1,4506.0,2.15332114]
[1759852884808,2.94857438,4506.1,4506.0,2.15332114]
[1759852885005,3.17757438,4506.1,4506.0,2.15332114]
[1759852885200,3.2078,4506.7,4506.6,0.6213]
[1759852885399,0.229,4507.1,4506.7,1.5294]
[1759852885599,0.62814,4507.0,4506.6,0.6213]
[1759852886000,0.39916,4506.8,4506.7,1.5294]
[1759852886203,0.229,4506.8,4506.1,1.5294]
[1759852886502,0.39919,4506.4,4506.0,0.62392114]
[1759852886704,0.39919,4506.4,4506.1,1.5294]
[1759852887098,0.229,4506.5,4506.0,0.62392114]
[1759852887299,0.39921,4506.2,4506.1,1.5294]
[1759852887606,0.62821,4506.2,4506.1,1.5294]
[1759852888006,9.16659834,4506.2,4505.0,0.6213]
[1759852888211,0.3993,4505.1,4504.9,1.5294]
[1759852888405,0.39933,4504.8,4504.3,1.5294]
[1759852888596,0.229,4504.7,4504.3,1.5294]
[1759852888797,0.39936,4504.5,4504.3,1.5294]
[1759852888999,0.39936,4504.5,4504.3,1.94488546]
[1759852889202,0.40133871,4504.5,4504.3,0.00271907]
[1759852889505,0.40133871,4504.5,4504.4,1.5294]
[1759852890707,4.1398323,4504.5,4503.0,0.6213]
[1759852891013,1.22742,4504.4,4503.4,3.2078]
[1759852891207,3.2078,4503.2,4499.4,0.6213]
[1759852891411,3.2078,4500.4,4499.4,0.6213]
[1759852891613,3.2078,4499.8,4499.4,0.6213]
[1759852891912,3.2078,4499.8,4499.4,0.62411484]
[1759852891913,0.3998,4499.5,4499.4,0.62411484]
[1759852892116,0.0022429,4499.8,4499.4,0.62411484]
[1759852892117,0.4020229,4499.8,4499.4,0.62411484]
[1759852892312,0.0022429,4499.8,4499.4,0.62411484]
[1759852892607,0.0022429,4499.8,4499.5,8.2078]
[1759852892812,3.2078,4500.5,4500.4,1.5785]
[1759852893110,3.2078,4501.0,4500.4,1.5785]
[1759852893615,3.2078,4501.5,4501.1,1.5785]
[1759852893812,3.21035792,4501.5,4501.1,1.8075]
[1759852894403,3.2078,4502.0,4501.7,0.6574]
[1759852894609,0.39948,4503.1,4502.2,1.5785]
[1759852894802,0.39948,4503.1,4502.5,1.5785]
[1759852895008,3.2078,4503.2,4503.1,0.6574]
[1759852895207,3.60722,4503.8,4503.2,1.5785]
[1759852895407,3.20935646,4503.8,4503.2,1.58049552]
[1759852895608,3.20935646,4503.8,4503.3,40.8]
[1759852896306,3.20935646,4503.8,4503.3,41.19946]
[1759852896511,3.20935646,4503.8,4503.6,1.5785]
[1759852896911,8.17739154,4503.7,4503.2,0.00199552]
[1759852897112,3.2078,4503.3,4501.9,1.5785]
[1759852897412,0.99864,4503.5,4501.7,43.0359]
[1759852897413,3.2078,4502.3,4501.7,43.0359]
[1759852897615,0.229,4502.2,4501.8,1.5785]
[1759852898114,0.229,4502.2,4501.8,0.0019481]
[1759852898619,3.60735,4502.3,4501.9,1.525]
[1759852898913,0.229,4502.2,4501.8,0.0019481]
[1759852899115,3.2078,4502.9,4501.9,1.525]
[1759852899311,3.2078,4502.9,4502.1,1.525]
[1759852899516,3.4368,4502.9,4502.5,1.525]
[1759852899710,3.2078,4502.9,4502.5,1.525]
[1759852899911,3.2078,4502.9,4502.4,0.647]
[1759852900111,0.229,4503.1,4502.7,0.39951]
[1759852900314,0.229,4503.1,4502.6,1.525]
[1759852900513,0.229,4503.1,4502.5,1.525]
[1759852900821,0.39951,4502.8,4502.5,1.525]
[1759852901124,0.39952,4502.6,4502.5,1.525]
[1759852901310,0.229,4502.8,4502.5,1.525]
[1759852901917,0.62851,4502.8,4502.5,1.525]
[1759852902217,0.39949,4503.1,4502.5,1.525]
[1759852902417,0.229,4503.0,4502.5,0.39953]
[1759852902618,0.229,4503.0,4502.5,1.525]
[1759852902815,0.39952,4502.7,4502.5,1.525]
[1759852903019,3.2078,4502.8,4501.7,44.6652]
[1759852903209,3.2078,4502.3,4501.9,1.525]
[1759852903411,0.39958,4502.0,4501.4,1.525]
[1759852903925,0.39964,4501.3,4500.8,1.525]
[1759852904126,3.2078,4501.1,4500.8,1.525]
[1759852904321,3.2078,4501.1,4500.5,3.2078]
[1759852904616,0.62867,4501.0,4500.6,0.647]
[1759852904821,0.39968,4500.9,4500.7,1.525]
[1759852905124,0.39968,4500.9,4500.6,0.64914372]
[1759852905125,0.229,4500.8,4500.6,0.64914372]
[1759852905414,0.229,4500.8,4500.7,1.525]
[1759852905717,3.3313,4502.3,4502.2,1.525]
[1759852905916,3.2078,4503.4,4502.2,4.8563]
[1759852906115,1.65785646,4503.8,4503.2,1.525]
[1759852906313,0.00155646,4503.8,4503.7,3.60723]
[1759852906521,1.65785646,4503.8,4503.7,3.2078]
[1759852906720,0.00155646,4503.8,4503.7,3.2078]
[1759852906913,0.00155646,4503.8,4503.7,4.7328]
[1759852907113,0.00155646,4503.8,4503.7,45.5328]
[1759852907319,1.65785646,4503.8,4503.7,44.0078]
[1759852907617,1.65785646,4503.8,4503.7,3.2078]
[1759852908922,0.00155646,4503.8,4503.7,5.13223]
[1759852910017,1.6563,4505.4,4504.3,1.525]
[1759852910322,1.6563,4505.4,4505.1,4.7328]
[1759852910518,1.6563,4505.4,4505.1,3.2078]
[1759852910722,1.6563,4505.7,4505.4,0.39927]
[1759852910911,1.88720381,4505.7,4505.4,0.00261372]
[1759852911117,1.6563,4505.6,4505.4,0.00261372]
[1759852911318,0.23090381,4505.7,4505.4,0.00261372]
[1759852912024,1.88720381,4505.7,4505.4,0.00261372]
[1759852912223,1.88720381,4505.7,4505.5,0.39927]
[1759852912521,1.14859695,4508.0,4506.9,0.39914]
[1759852912725,3.2078,4508.1,4506.1,0.99804]
[1759852912726,1.6563,4507.8,4507.2,3.2078]
[1759852912925,2.3121,4507.8,4507.2,3.2078]
[1759852913120,1.6563,4507.7,4507.3,0.3991]
[1759852913322,0.6558,4507.8,4507.2,3.2078]
[1759852913524,1.65886699,4507.8,4507.7,3.2078]
[1759852917122,1.65886699,4507.8,4507.1,3.60692]
[1759852917123,1.05742699,4507.8,4507.1,3.60692]
[1759852917324,0.39909,4507.6,4507.1,3.2078]
[1759852917519,1.6563,4507.5,4507.1,3.2078]
[1759852917727,0.39909,4507.6,4507.1,3.2078]
[1759852918026,0.229,4507.7,4507.1,3.2078]
[1759852918225,1.6563,4507.6,4507.1,3.2078]
[1759852918421,0.229,4507.7,4507.1,3.2078]
[1759852919024,1.6563,4507.6,4507.1,3.2078]
[1759852919531,0.229,4507.5,4507.1,3.2078]
[1759852919720,1.6563,4507.4,4507.1,3.2078]
[1759852920130,0.229,4507.5,4507.1,3.2078]
[1759852920330,0.229,4507.5,4506.5,3.2078]
[1759852920331,1.6563,4507.2,4506.5,3.2078]
[1759852920629,1.6563,4507.2,4505.8,3.2078]
[1759852920630,0.39918,4506.5,4505.8,3.2078]
[1759852920925,1.4946,4506.0,4505.8,3.2078]
[1759852921128,0.229,4505.9,4505.4,0.00261372]
[1759852921322,3.16754989,4505.9,4505.4,0.00261372]
[1759852921528,4.7024,4505.5,4505.4,0.00261372]
[1759852921718,4.7024,4505.5,4504.2,3.2078]
[1759852921719,2.1452,4505.4,4504.2,3.2078]
[1759852921924,0.39933,4504.8,4504.2,3.2078]
[1759852922128,0.39933,4504.8,4502.7,0.99878]
[1759852922129,3.2078,4504.4,4503.7,3.2078]
[1759852922331,1.492,4504.1,4503.7,3.2078]
[1759852922521,0.39939,4504.2,4503.7,3.2078]
[1759852922522,0.229,4504.0,4503.7,3.60723]
[1759852922720,0.229,4504.1,4503.7,3.2078]
[1759852922925,1.54668023,4504.0,4503.7,3.20955317]
[1759852923125,0.00228023,4504.0,4503.9,1.5877]
[1759852923429,0.229,4505.2,4504.6,0.39935]
[1759852923635,0.229,4505.2,4504.7,3.2078]
[1759852923928,0.229,4505.2,4504.4,1.5877]
[1759852924125,0.229,4505.1,4504.7,3.2078]
[1759852924320,0.23102149,4505.1,4504.8,1.5877]
[1759852924625,0.23102149,4505.1,4504.7,3.60713]
[1759852924826,1.77542149,4505.1,4504.7,3.60713]
[1759852925028,0.00202149,4505.1,4504.9,0.39932]
[1759852925526,0.00202149,4505.1,4505.0,1.5877]
[1759852926033,1.54642149,4505.1,4504.7,3.60713]
[1759852926224,1.5444,4505.0,4504.4,0.39936]
[1759852926530,1.54642149,4505.1,4504.5,0.39935]
[1759852927032,1.54642149,4505.1,4504.1,3.2078]
[1759852927033,1.5444,4505.0,4504.6,0.39934]
[1759852927431,0.00202149,4505.1,4505.0,0.39931]
[1759852927629,0.00202149,4505.1,4505.0,2.60221]
[1759852927825,0.00202149,4505.1,4505.0,2.2029]
[1759852928521,0.00202149,4505.1,4505.0,7.4319]
[1759852928728,0.106,4506.2,4505.9,1.98692]
[1759852929131,0.106,4506.2,4506.0,0.39922]
[1759852929329,0.106,4506.2,4506.0,1.98692]
[1759852929631,3.2078,4506.4,4506.3,1.5877]
[1759852929830,0.00169912,4506.4,4506.0,3.2078]
[1759852930137,1.5444,4506.3,4506.0,3.2078]
[1759852930432,0.00169912,4506.4,4506.0,3.2078]
[1759852930636,0.229,4506.3,4506.2,0.3992]
[1759852930828,0.00169912,4506.4,4506.2,1.9869]
[1759852931028,0.229,4506.3,4506.2,1.9869]
[1759852931439,0.229,4506.3,4506.2,1.5877]
[1759852932240,0.00169912,4506.4,4506.2,1.9869]
[1759852932542,0.00169912,4506.4,4506.3,1.5877]
[1759852932726,0.00169912,4506.4,4506.3,1.83375988]
[1759852933135,0.00169912,4506.4,4506.3,1.5877]
[1759852933729,1.5444,4506.3,4506.0,3.2078]
[1759852934238,0.23069912,4506.4,4506.3,1.5877]
[1759852934641,0.23069912,4506.4,4506.0,3.2078]
[1759852934642,1.5444,4506.3,4506.0,3.2078]
[1759852934934,0.39921,4506.2,4505.7,1.1261]
[1759852935131,1.5444,4505.8,4505.7,1.1261]
[1759852935330,1.5444,4505.8,4505.0,3.2078]
[1759852935331,2.17264,4505.8,4505.0,3.2078]
[1759852935533,5.03362394,4505.8,4505.0,3.2078]
[1759852935730,0.39925,4505.7,4505.1,0.3993]
[1759852935928,4.63438394,4505.8,4505.0,3.2078]
[1759852936235,0.39928,4505.4,4504.7,0.39933]
[1759852936434,0.39928,4505.4,4504.5,5.4107]
[1759852936435,0.229,4505.3,4504.5,5.4107]
[1759852936733,0.229,4505.3,4504.9,0.39931]
[1759852936936,1.5444,4505.2,4504.5,3.823]
[1759852937439,0.39932,4504.9,4504.5,3.2078]
[1759852937638,1.7734,4504.8,4504.5,3.2078]
[1759852937826,0.229,4504.8,4504.6,0.39934]
[1759852938029,0.229,4505.0,4504.7,1.5877]
[1759852938238,2.17271,4505.0,4504.5,4.7955]
[1759852938439,1.7734,4505.0,4504.5,3.60715]
[1759852938641,0.229,4505.0,4504.6,1.5877]
[1759852938834,0.229,4505.0,4504.9,1.5877]
[1759852939030,3.60707,4505.5,4504.9,1.5877]
[1759852939236,0.62828,4505.4,4504.8,1.98702]
[1759852939433,3.1439612,4505.4,4504.9,0.39932]
[1759852939744,0.39928,4505.3,4504.6,1.98704]
[1759852940040,0.39931,4505.0,4504.5,3.823]
[1759852940641,0.6283,4505.2,4504.6,1.98704]
[1759852940837,0.39931,4505.1,4504.6,0.39934]
[1759852941047,0.229,4505.2,4504.7,0.39934]
[1759852941344,0.229,4505.2,4504.8,0.39932]
[1759852941535,3.2078,4506.0,4505.1,1.5877]
[1759852941843,1.54609912,4506.4,4506.3,1.5877]
[1759852941844,0.00169912,4506.4,4506.3,1.5877]
[1759852942738,0.228,4507.9,4507.4,0.39909]
[1759852942938,0.228,4507.9,4507.5,1.5877]
[1759852943143,0.228,4507.9,4507.6,1.5877]
[1759852943338,5.1512,4508.6,4507.8,4.7955]
[1759852943535,5.1512,4508.6,4507.8,4.79784665]
[1759852943536,3.21064429,4508.6,4507.8,4.79784665]
[1759852943738,3.21064429,4508.6,4508.0,0.6152]
[1759852943936,2.82419781,4508.5,4507.8,0.00234665]
[1759852944140,1.94345,4508.0,4507.8,0.00234665]
[1759852944341,1.5444,4507.9,4507.8,0.00234665]
[1759852944644,0.39912,4507.2,4506.7,3.2078]
[1759852944845,0.39915,4506.9,4506.7,3.2078]
[1759852945039,1.7724,4506.8,4506.7,2.70075007]
[1759852945242,4.78854377,4506.8,4506.1,3.2078]
[1759852945448,0.228,4506.7,4506.2,1.5877]
[1759852945648,1.5444,4507.4,4506.2,1.5877]
[1759852945649,0.228,4506.6,4506.3,1.5877]
[1759852946439,3.2078,4507.1,4506.4,0.39918]
[1759852946648,0.228,4507.0,4506.7,1.5877]
[1759852947048,0.228,4507.0,4506.8,1.5877]
[1759852947741,3.2078,4507.7,4506.8,1.5877]
[1759852947948,3.2078,4507.7,4507.2,0.6152]
[1759852948140,3.2078,4507.7,4507.0,3.2078]
[1759852948141,4.36920342,4507.6,4507.0,3.2078]
[1759852948342,0.39913,4507.1,4506.7,1.5877]
[1759852948549,1.94353,4507.1,4506.2,3.43852695]
[1759852948745,1.5444,4507.1,4506.2,3.43852695]
[1759852949145,0.39915,4506.9,4506.2,3.83772695]
[1759852949341,2.32914695,4508.4,4507.0,1.5877]
[1759852949342,0.228,4507.6,4507.0,1.5877]
[1759852949651,0.228,4507.8,4507.2,0.39911]
[1759852949850,3.2078,4507.9,4507.4,1.5877]
[1759852950048,3.2078,4507.9,4507.8,2.2029]
[1759852950553,0.228,4508.3,4508.0,1.5877]
[1759852950752,3.2078,4508.5,4507.9,1.5877]
[1759852951051,0.00284429,4508.6,4508.5,1.9867]
[1759852951249,3.2078,4509.6,4509.3,1.5877]
[1759852951454,0.228,4510.1,4509.6,1.0141]
[1759852951645,0.228,4510.1,4509.7,1.5877]
[1759852951949,0.62687,4510.0,4509.7,1.5877]
[1759852952141,0.62687,4510.0,4509.2,1.5877]
[1759852952343,0.62687,4510.0,4509.2,1.5899783]
[1759852952344,3.2078,4509.6,4509.2,1.5899783]
[1759852952542,0.228,4509.5,4509.2,1.5899783]
[1759852952742,0.62691,4509.5,4509.2,1.5899783]
[1759852952945,0.39893,4509.4,4509.2,0.0022783]
[1759852953148,1.4998,4509.3,4509.2,0.0022783]
[1759852953353,6.4998,4509.3,4508.0,1.6456]
[1759852953551,4.7053,4508.7,4508.0,1.6456]
[1759852953746,0.228,4508.6,4508.0,1.6456]
[1759852954149,0.39921,4506.1,4505.5,1.6456]
[1759852954350,3.2078,4505.9,4505.0,2.61845435]
[1759852954543,3.2078,4505.9,4505.0,2.62095875]
[1759852954544,3.21059897,4505.9,4505.0,2.62095875]
[1759852954748,1.0105,4505.2,4505.0,0.0025044]
[1759852955043,1.2385,4505.1,4505.0,0.0025044]
[1759852955247,8.90070231,4505.1,4505.0,0.0025044]
[1759852955645,9.12870231,4505.1,4505.0,0.0025044]
[1759852955846,9.12870231,4505.1,4503.5,1.6456]
[1759852956049,9.12870231,4505.1,4503.3,3.2078]
[1759852956050,4.2158,4503.9,4503.3,3.2078]
[1759852956246,4.2158,4503.9,4502.7,1.6456]
[1759852956247,0.39944,4503.5,4502.7,4.8534]
[1759852956449,0.228,4503.4,4502.8,1.1339]
[1759852956652,3.2078,4502.9,4502.8,1.1339]
[1759852956847,3.2078,4502.9,4502.8,1.13648917]
[1759852957347,4.4438,4502.9,4502.8,1.13648917]
[1759852957747,3.2078,4503.4,4502.8,2.78208917]
[1759852957949,7.09743524,4502.9,4502.8,1.13648917]
[1759852958156,4.2158,4502.9,4502.8,1.13648917]
[1759852958451,6.31743524,4502.9,4502.8,1.13648917]
[1759852958855,2.88163524,4502.9,4502.8,1.13648917]
[1759852959050,2.88163524,4502.9,4502.8,0.00258917]
[1759852959253,3.2078,4503.4,4502.8,0.00258917]
[1759852959455,0.228,4503.3,4502.8,0.00258917]
[1759852959857,0.228,4503.3,4502.9,1.6456]
[1759852960054,0.228,4503.3,4502.8,0.00258917]
[1759852960258,4.6153,4502.9,4502.8,0.00258917]
[1759852960458,4.8433,4502.9,4502.8,0.00258917]
[1759852960759,7.67964684,4502.9,4502.8,0.00258917]
[1759852961855,1.0054,4502.5,4501.2,3.2078]
[1759852962054,3.2078,4502.1,4501.3,1.6456]
[1759852962355,0.228,4502.0,4501.3,1.6456]
[1759852962558,3.2078,4502.1,4501.5,1.6456]
[1759852962759,3.20974761,4502.1,4501.5,0.00286678]
[1759852962955,0.228,4502.0,4501.5,0.00286678]
[1759852963154,3.20974761,4502.1,4501.5,0.40248678]
[1759852963355,0.228,4502.0,4501.6,1.6113]
[1759852963562,0.228,4502.0,4501.7,1.6113]
[1759852963762,0.62758,4502.0,4501.7,1.6113]
[1759852963962,2.90888512,4501.9,4501.6,1.4047]
[1759852964564,3.30847512,4501.9,4501.6,1.4047]
[1759852964766,0.3996,4501.7,4501.6,1.4047]
[1759852964970,0.6276,4501.7,4501.6,1.4047]
[1759852965260,3.25202221,4501.7,4501.5,0.00286678]
[1759852965460,3.2078,4501.6,4501.5,0.00286678]
[1759852965864,6.04058148,4501.6,4501.5,0.00286678]
[1759852966169,0.39971,4500.6,4500.3,0.6273]
[1759852966458,0.99907,4501.5,4500.4,1.6113]
[1759852966459,0.62772,4500.5,4500.4,1.6113]
[1759852966657,0.62772,4500.5,4500.1,3.2078]
[1759852966658,2.95002734,4500.5,4500.1,3.2078]
[1759852966863,0.228,4500.4,4500.2,1.6113]
[1759852967063,0.228,4500.3,4500.2,1.61393669]
[1759852968066,0.228,4500.3,4500.2,0.00263669]
[1759852968265,3.05288632,4500.3,4500.2,0.00263669]
[1759852969459,3.2078,4500.4,4500.2,1.61393669]
[1759852969667,3.2078,4500.9,4500.7,1.6113]
[1759852969863,0.39969,4500.7,4500.6,2.2697]
[1759852970069,0.39971,4500.6,4500.3,1.6113]
[1759852970366,2.85688119,4500.8,4500.3,1.6113]
[1759852970367,0.39973,4500.4,4500.3,1.6113]
[1759852970762,3.17411027,4500.4,4500.3,1.6113]
[1759852970962,0.228,4500.4,4500.3,1.6113]
[1759852971556,3.2078,4500.9,4500.2,0.00263669]
[1759852971861,0.39972,4500.4,4500.2,0.00263669]
[1759852972061,0.228,4500.3,4500.2,0.00263669]
[1759852972258,3.09698822,4500.3,4500.2,0.00263669]
[1759852972969,6.30478822,4500.3,4500.2,0.00263669]
[1759852973166,6.30478822,4500.3,4498.4,0.228]
[1759852973167,0.39983,4499.1,4498.9,3.2078]
[1759852973868,0.228,4499.0,4498.9,3.2078]
[1759852974172,2.82590549,4499.7,4499.4,0.6584]
[1759852974463,3.2078,4500.9,4500.1,1.6113]
[1759852974773,2.9233141,4500.6,4500.3,0.39972]
[1759852974959,3.2078,4501.4,4500.6,0.6584]
[1759852975162,0.39968,4500.8,4500.7,1.6113]
[1759852975364,0.62768,4500.8,4500.7,1.6113]
[1759852975765,0.228,4500.8,4500.7,6.6113]
[1759852976062,0.00194761,4502.1,4501.9,1.6113]
[1759852976259,0.228,4502.0,4501.6,3.2078]
[1759852976468,0.228,4502.0,4501.0,1.6113]
[1759852976469,0.99897,4501.9,4501.0,3.2078]
[1759852976666,0.39962,4501.6,4501.2,0.6584]
[1759852976965,0.39958,4502.0,4501.3,1.6113]
[1759852977164,0.228,4501.9,4501.8,0.6584]
[1759852977466,0.228,4501.9,4501.8,2.2697]
[1759852977668,0.39958,4502.0,4501.8,2.2697]
[1759852977868,0.228,4501.9,4501.8,2.2697]
[1759852978063,0.39962,4501.6,4501.3,1.6113]
[1759852978276,0.39959,4501.9,4501.8,2.2697]
[1759852978467,0.00194761,4502.1,4501.8,0.6584]
[1759852978668,0.39959,4501.9,4501.8,2.2697]
[1759852979373,2.8269494,4501.9,4501.8,2.2697]
[1759852979673,0.39958,4502.0,4501.8,2.2697]
[1759852979869,0.00194761,4502.1,4501.8,0.6584]
[1759852980373,0.127,4503.1,4503.0,0.6584]
[1759852980569,0.127,4503.1,4502.6,1.6113]
[1759852980866,2.86261435,4503.2,4503.1,1.6113]
[1759852981072,0.39953,4502.6,4502.4,0.6584]
[1759852981272,0.228,4502.5,4502.4,2.27211814]
[1759852982068,3.1625765,4502.5,4502.4,0.00241814]
[1759852982273,3.1625765,4502.5,4502.4,1.61371814]
[1759852982469,3.1625765,4502.5,4502.4,0.00241814]
[1759852982769,3.1625765,4502.5,4502.4,1.56281814]
[1759852982966,2.9345765,4502.5,4502.4,2.17581814]
[1759852983168,3.1625765,4502.5,4502.4,0.00241814]
[1759852983871,3.1625765,4502.5,4501.2,0.6584]
[1759852983872,0.39964,4501.4,4501.2,0.6584]
[1759852984172,0.228,4501.3,4501.2,2.2188]
[1759852984373,3.209701,4502.6,4501.3,1.5604]
[1759852984674,0.39959,4501.9,4501.6,1.5604]
[1759852984874,0.228,4501.8,4501.7,1.5604]
[1759852985478,0.39958,4502.1,4501.5,3.8208]
[1759852985678,0.228,4501.8,4501.5,3.8208]
[1759852985978,0.228,4501.8,4501.3,0.00287868]
[1759852985979,0.39961,4501.7,4501.3,0.00287868]
[1759852986171,0.228,4501.8,4501.3,0.00287868]
[1759852986372,0.228,4501.8,4501.4,1.5604]
[1759852986674,0.228,4501.8,4501.3,0.00287868]
[1759852986675,2.82242878,4501.7,4501.3,0.00287868]
[1759852987274,0.39963,4501.5,4501.3,0.00287868]
[1759852987578,3.5335132,4501.4,4501.0,3.2078]
[1759852987778,0.39966,4501.1,4501.0,3.2078]
[1759852987977,2.92535259,4501.5,4501.0,3.2078]
[1759852988273,2.92535259,4501.3,4501.0,4.7682]
[1759852988476,2.92535259,4501.4,4501.0,3.2078]
[1759852988680,0.228,4501.3,4501.0,3.82269361]
[1759852988975,0.39966,4501.1,4501.0,3.82269361]
[1759852989278,0.228,4501.1,4501.0,3.20969361]
[1759852989679,0.228,4501.1,4501.0,4.77009361]
[1759852989881,0.228,4501.1,4501.0,1.56229361]
[1759852989882,3.40996896,4501.1,4501.0,1.56229361]
[1759852990074,3.15471134,4501.1,4501.0,2.17529361]
[1759852990379,3.6381281,4501.1,4501.0,2.17529361]
[1759852990576,3.6381281,4501.1,4501.0,0.00189361]
[1759852991074,0.99892,4502.2,4501.0,0.00189361]
[1759852991075,0.001901,4502.6,4502.0,0.613]
[1759852991268,0.001901,4502.6,4502.5,2.1734]
[1759852991983,3.2078,4504.2,4503.1,1.5604]
[1759852992282,0.228,4504.1,4503.5,5.3812]
[1759852992473,3.2078,4504.2,4503.5,0.613]
[1759852992780,0.39943,4503.8,4503.6,1.5604]
[1759852992984,0.39944,4503.6,4503.5,0.613]
[1759852993176,0.39948,4503.1,4502.9,3.2078]
[1759852993576,0.228,4503.0,4502.9,3.2078]
[1759852993883,0.39948,4503.1,4502.9,3.2078]
[1759852994181,2.84308261,4503.6,4503.5,0.613]
[1759852994381,3.07108261,4503.6,4503.5,2.1734]
[1759852994976,2.84308261,4503.6,4503.5,2.1734]
[1759852995176,2.84308261,4503.6,4503.5,5.3812]
[1759852995378,2.84308261,4503.6,4503.5,2.1734]
[1759852995584,2.87197889,4503.7,4503.6,1.5604]
[1759852995876,0.00273392,4504.2,4504.1,1.5604]
[1759852996386,11.5382632,4506.5,4504.1,1.5604]
[1759852996387,3.2078,4505.8,4505.0,0.613]
[1759852996681,3.47672806,4505.7,4505.6,1.5604]
[1759852996872,0.228,4505.8,4505.6,1.5604]
[1759852997071,3.2078,4506.8,4505.6,1.5604]
[1759852997072,0.228,4505.7,4505.6,1.5604]
[1759852997275,2.85180983,4505.7,4505.6,1.56298499]
[1759852997582,3.07980983,4505.7,4505.6,0.00258499]
[1759852997980,2.85180983,4505.7,4505.6,0.00258499]
[1759852998284,3.07980983,4505.7,4505.6,1.56298499]
[1759852998483,2.85180983,4505.7,4505.6,1.56298499]
[1759852998885,2.85180983,4505.7,4505.6,0.00258499]
[1759852999182,8.07980983,4505.7,4505.2,3.2078]
[1759852999377,8.07980983,4505.7,4504.6,4.7682]
[1759852999378,0.39933,4504.8,4504.6,4.7682]